Cogmind - Beta 9 @@@ ROGUE MODE // 2019.10.26 @ 14:57:04 Player: Ando Result: Destroyed by D-53 Grenadier with Mini Grenade Launcher Performance ------------- Evolutions (1) 500 Regions Visited (3) 600 Robots Destroyed (42) 210 Value Destroyed (816) 816 Prototype IDs (0) 0 Alien Tech Used (0) 0 Bonus (0) 0 TOTAL SCORE: 2126 Bonus ------- None Cogmind --------- Core Integrity 0/400 Matter 238/300 Energy 254/265 System Corruption 2% Temperature Cool (30) Location -9/Mines Parts ------- Power (1) Improved Ion Engine Propulsion (2) Armored Treads Advanced Treads Utility (3) Large Storage Unit Visual Processing Unit Targeting Computer Weapon (3) Medium Laser Shotgun Inventory (10) Ion Engine Armored Treads Armored Treads Advanced Treads Cooling System Large Storage Unit Peak State ------------ Power Improved Ion Engine Propulsion Armored Treads Armored Treads Utility Large Storage Unit Visual Processing Unit Targeting Computer Weapon Beam Cannon Heavy Assault Rifle Shotgun Inventory Ion Engine Armored Treads Armored Treads Advanced Treads Advanced Treads Cooling System Large Storage Unit Medium Laser Assault Rifle Rocket Launcher [Rating: 19] Favorites ----------- Power Improved Ion Engine Engine Improved Ion Engine Propulsion Aluminum Leg Treads Armored Treads Leg Aluminum Leg Wheel Compact Wheel Utility Visual Processing Unit Storage Medium Storage Unit Processor Visual Processing Unit Weapon Medium Laser Energy Gun Medium Laser Energy Cannon Beam Cannon Ballistic Gun Assault Rifle Launcher Rocket Launcher Build | -11 -10 -9 -9 ------- Run | Scr Mat Mat Min Slots Evolved 2 | . . 2 . Power . | . . . . Propulsion . | . . . . Utility 1 | . . 1 . Weapon 1 | . . 1 . Parts Attached 46 | 6 12 17 11 Power 4 | 1 2 1 . Engine 4 | 1 2 1 . Core . | . . . . Reactor . | . . . . Propulsion 9 | 2 2 4 1 Treads 5 | . . 4 1 Leg 2 | . 2 . . Wheel 2 | 2 . . . Hover . | . . . . Flight . | . . . . Utility 5 | 1 2 2 . Device . | . . . . Storage 3 | 1 1 1 . Processor 2 | . 1 1 . Hackware . | . . . . Protection . | . . . . Artifact . | . . . . Weapon 28 | 2 6 10 10 Energy Gun 6 | 1 2 2 1 Energy Cannon 1 | . . 1 . Ballistic Gun 14 | 1 3 5 5 Ballistic Cannon . | . . . . Launcher 7 | . 1 2 4 Special Weapon . | . . . . Impact Weapon . | . . . . Slashing Weapon . | . . . . Piercing Weapon . | . . . . Special Melee Weapon . | . . . . Unidentified Prototypes . | . . . . Parts Lost 9 | . 2 2 5 Power 1 | . 1 . . Propulsion 1 | . . . 1 Utility . | . . . . Weapon 7 | . 1 2 4 Highest Loss Streak 4 | . 2 1 4 Average Slot Usage (%) 97 | . 96 98 99 Engine 12 | . 14 11 11 Treads 8 | . . 10 22 Leg 12 | . 19 11 . Wheel 4 | . 8 . . Storage 12 | . 14 11 11 Processor 16 | . 10 21 22 Energy Gun 13 | . 16 21 . Energy Cannon 1 | . . 3 3 Ballistic Gun 14 | . 10 7 28 Naked Turns . | . . . . Heaviest Build 32 | 10 17 32 32 Greatest Support 44 | 32 32 44 40 Greatest Overweight (x) 9 | 2 1 9 . Average Overweight (x) . | . . . . Largest Inventory Capacity 10 | 6 8 10 10 Average Capacity 8 | 5 7 9 10 Most Carried 10 | 6 8 10 10 Average Carried 7 | 3 7 8 9 Final Capacity 10 | . . . 10 Final Carried 6 | . . . 6 Class Distribution -------------------- 57% | Mutant 37% | Gunner 5% | Scavenger-Gunner Dominant Class ---------------- Mutant | -10/Materials Gunner | -9/Materials Gunner | -9/Mines Resources | -11 -10 -9 -9 ----------- Run | Scr Mat Mat Min Matter Collected 979 | 243 285 211 240 Remotely . | . . . . Salvage Created 926 | . 323 511 92 Parts 82 | . 19 45 18 Haulers Intercepted 1 | . . 1 . Recyclers Shooed 2 | . 1 1 . Parts Field Recycled . | . . . . Retrieved Matter . | . . . . Parts Self-Destructed . | . . . . Prevented . | . . . . Kills | -11 -10 -9 -9 ------- Run | Scr Mat Mat Min Combat Hostiles Destroyed 35 | . 10 15 10 Guns 15 | . 5 8 2 AOE 20 | . 5 7 8 Classes Destroyed 9 | . 5 3 1 Worker 2 | . . 1 1 Builder 2 | . 1 1 . Hauler 1 | . . 1 . Recycler 1 | . 1 . . Watcher 1 | . 1 . . Swarmer 23 | . 6 8 9 Grunt 7 | . 4 3 . Sentry 4 | . . 4 . Demolisher 1 | . . . 1 Best Kill Streak 8 | . 8 8 5 Combat Bots Only 6 | . 6 5 4 Max Kills in Single Turn 5 | . 5 3 2 Gunslinging . | . . . . Exploded 4 | . 4 2 2 Melee . | . . . . Uniques/NPCs Destroyed . | . . . . Combat | -11 -10 -9 -9 -------- Run | Scr Mat Mat Min Damage Taken 2209 | . 518 584 1107 Core 545 | . 137 133 275 Absorbed by Shields . | . . . . Core Remaining (%) 72 | 100 45 . . Volleys Fired 75 | . 29 27 19 Largest 3 | . 2 3 3 Hottest 145 | . 60 145 116 Shots Fired 181 | . 57 73 51 Gun 152 | . 55 56 41 Cannon 17 | . . 14 3 Launcher 12 | . 2 3 7 Special . | . . . . Kinetic 104 | . 46 19 39 Thermal 48 | . 9 34 5 Explosive 12 | . 2 3 7 Electromagnetic 17 | . . 17 . Robot Hit Streak 11 | . 9 11 5 Robot Miss Streak 5 | . 2 2 5 Penetration Max . | . . . . Secondary Targets 2 | . 1 . 1 Max Gunslinging Chain 1 | . 1 . 1 Shots Hit Robots 90 | . 32 39 19 Core Hits 70 | . 23 31 16 Critical Hits . | . . . . Critical Kills . | . . . . Critical Parts Destroyed . | . . . . Melee Attacks . | . . . . Impact . | . . . . Slashing . | . . . . Piercing . | . . . . Sneak Attacks . | . . . . Combat Hostiles . | . . . . Follow-up Attacks . | . . . . Damage Inflicted 2618 | . 678 1140 800 Guns 1134 | . 410 497 227 Cannons 141 | . . 141 . Explosions 1342 | . 267 502 573 Melee . | . . . . Ramming 1 | . 1 . . Kinetic 691 | . 358 119 214 Thermal 390 | . 52 325 13 Explosive 1317 | . 267 477 573 Electromagnetic 219 | . . 219 . Impact . | . . . . Slashing . | . . . . Piercing . | . . . . Highest Corruption 2 | . 2 2 2 Average Corruption 2 | . 2 2 2 Corruption Purged . | . . . . Effects 13 | . . 4 9 Message Errors 2 | . . 1 1 Heat Flow Errors 2 | . . 1 1 Energy Discharges 1 | . . 1 . Data Loss (minor) 2 | . . . 2 Targeting Errors 5 | . . 1 4 Weapon Failures 1 | . . . 1 Overload Shots . | . . . . Overflow Damage 133 | . 20 38 75 Projectiles . | . . . . Explosions 133 | . 20 38 75 Melee . | . . . . Knockbacks . | . . . . Impact . | . . . . Kinetic . | . . . . Secondary . | . . . . Self-Inflicted Damage 6 | . . . 6 Shots 1 | . . . 1 Rammed 1 | . 1 . . Targets Rammed 1 | . 1 . . Kicked . | . . . . Crushed . | . . . . Highest Temperature 297 | . 121 297 109 Average Temperature 83 | . 65 103 23 Received Heat Transfer 378 | . 228 150 . Effects 4 | . . 4 . Energy Bleed 1 | . . 1 . Interference 3 | . . 3 . Siege Activations . | . . . . Robots Corrupted . | . . . . Combat Hostiles . | . . . . Parts Fried . | . . . . Impact Corruptions . | . . . . Robots Melted . | . . . . Combat Hostiles . | . . . . Parts Melted 1 | . . 1 . Heat Transferred 989 | . 125 827 37 Parts Sabotaged . | . . . . Parts Stolen . | . . . . Parts Stripped . | . . . . Power Chain Reactions 2 | . . 2 . Missiles Intercepted . | . . . . Alert | -11 -10 -9 -9 ------- Run | Scr Mat Mat Min Peak Influence 286 | . 286 284 265 Average Influence 100 | . 78 128 132 Maximum Alert Level 1 | . 1 1 1 Low Security (%) 84 | . . . . Level 1 15 | . . . . Level 2 . | . . . . Level 3 . | . . . . Level 4 . | . . . . Level 5 . | . . . . High Security . | . . . . Max Security . | . . . . Squads Dispatched 1 | . . 1 . Investigation . | . . . . Extermination . | . . . . Reinforcement 1 | . . 1 . Assault . | . . . . Garrison . | . . . . Intercept . | . . . . Construction Impeded . | . . . . Haulers Reinforced . | . . . . Stealth | -11 -10 -9 -9 --------- Run | Scr Mat Mat Min Distress Signals 3 | . 2 1 . Communications Jammed . | . . . . Distress Signals . | . . . . Times Spotted 62 | . 25 24 13 Peak Tracking Total 9 | . 8 9 6 Tactical Retreats 3 | . 1 1 1 Traps | -11 -10 -9 -9 ------- Run | Scr Mat Mat Min Traps Triggered 2 | . 1 1 . Indirectly . | . . . . Trap Hack Attempts . | . . . . Triggered . | . . . . Disarmed 3 | . 3 . . Reprogrammed . | . . . . Reused . | . . . . Traps Extracted . | . . . . Installed . | . . . . Triggered . | . . . . Machines | -11 -10 -9 -9 ---------- Run | Scr Mat Mat Min Machines Disabled 4 | . 2 2 . Max in Single Turn 1 | . 1 1 . Machines Sabotaged . | . . . . Garrisons Compromised . | . . . . Overloaded Fab Kills . | . . . . Fab Network Shutdowns . | . . . . Hacking | -11 -10 -9 -9 --------- Run | Scr Mat Mat Min Machines Accessed 6 | . 5 1 . Terminals 6 | . 5 1 . Fabricators . | . . . . Repair Stations . | . . . . Recycling Units . | . . . . Scanalyzers . | . . . . Garrison Access . | . . . . Total Hacks 11 | . 9 2 . Successful 9 | . 8 1 . Failed 2 | . 1 1 . Catastrophic . | . . . . Database Lockouts . | . . . . Manual 3 | . 2 1 . Terminals 11 | . 9 2 . Fabricators . | . . . . Repair Stations . | . . . . Recycling Units . | . . . . Scanalyzers . | . . . . Garrison Access . | . . . . Terminal Hacks 7 | . 6 1 . Record 1 | . 1 . . Emergency Access Points 1 | . 1 . . Unreport Threat 1 | . 1 . . Disarm Traps 1 | . 1 . . Hauler Manifests 1 | . 1 . . Zone Layout 2 | . 1 1 . Fabricator Hacks . | . . . . Repair Station Hacks . | . . . . Recycling Unit Hacks . | . . . . Scanalyzer . | . . . . Garrison Access Hacks . | . . . . Unauthorized Hacks 5 | . 4 1 . Terminals 2 | . 2 . . Botnet 2 | . 2 . . Fabricators . | . . . . Repair Stations . | . . . . Recycling Units . | . . . . Scanalyzers . | . . . . Garrison Access . | . . . . Data Cores Recovered . | . . . . Used . | . . . . Hacking Detections 2 | . 2 . . Full Trace Events . | . . . . Feedback Events . | . . . . Feedback Blocked . | . . . . Robot Schematics Acquired . | . . . . Robots Built . | . . . . Matter . | . . . . Time . | . . . . Total Robot Build Rating . | . . . . Part Schematics Acquired . | . . . . Parts Built . | . . . . Matter . | . . . . Time . | . . . . Total Part Build Rating . | . . . . Parts Repaired . | . . . . Time . | . . . . Parts Recycled . | . . . . Recycled Matter . | . . . . Retrieved Matter . | . . . . Retrieved Components . | . . . . Parts Scanalyzed . | . . . . Part Schematics Acquired . | . . . . Parts Damaged . | . . . . Bothacking | -11 -10 -9 -9 ------------ Run | Scr Mat Mat Min Used RIF Installer . | . . . . Robots Hacked . | . . . . Non-combat . | . . . . Combat . | . . . . Robot Hacks Applied . | . . . . Relay Couplers Released . | . . . . Robots Rewired . | . . . . Allies Hacked . | . . . . Hacks Repelled . | . . . . Allies | -11 -10 -9 -9 -------- Run | Scr Mat Mat Min Total Allies . | . . . . Largest Group . | . . . . Highest-Rated Group . | . . . . Highest-Rated Ally . | . . . . Total Orders . | . . . . Ally Attacks . | . . . . Total Damage . | . . . . Kills . | . . . . Allies Corrupted . | . . . . Allies Melted . | . . . . Intel | -11 -10 -9 -9 ------- Run | Scr Mat Mat Min Robot Analysis Total . | . . . . Derelict Logs Recovered 1 | . . . 1 Drone Launches . | . . . . Drone Recoveries . | . . . . Exploration | -11 -10 -9 -9 ------------- Run | Scr Mat Mat Min Turns Passed 2600 | 73 1286 619 622 Spaces Moved 1657 | 65 976 294 322 Core 20 | 19 . 1 . Treads 427 | . . 105 322 Legs 932 | . 744 188 . Wheels 278 | 46 232 . . Hover . | . . . . Flight . | . . . . Fastest Speed 50 | 50 100 120 170 Average Speed 130 | 90 115 145 170 Slowest Speed 500 | 150 150 500 170 Overloaded Moves . | . . . . Propulsion Burnouts . | . . . . Robots Hopped . | . . . . Cave-ins Triggered . | . . . . Exploration Rate (%) 48 | 4 86 25 80 Regions Visited 3 Branch Regions 1 Pre-discovered Areas 1 | . . . 1 Known Exits Taken . | . . . . Unknown Exits Taken 3 | 1 1 1 . Scrap Searched . | . . . . Spaces Dug . | . . . . Terrain Destroyed 103 | . . 28 75 Melee . | . . . . Projectile . | . . . . AOE 103 | . . 28 75 Actions | -11 -10 -9 -9 --------- Run | Scr Mat Mat Min Total 1946 | 77 1082 430 357 Wait 127 | 1 48 75 3 Move 1654 | 64 975 293 322 Hop . | . . . . Pick Up 20 | 6 6 7 1 Fast Attach 15 | 5 5 5 . Attach 10 | 1 2 3 4 Detach 4 | . 3 1 . Swap 21 | . 5 9 7 Drop 19 | . 8 10 1 Fire 75 | . 29 27 19 Melee . | . . . . Ram . | . . . . Kick 1 | . 1 . . Crush . | . . . . Escape Stasis . | . . . . Rewire . | . . . . Trap . | . . . . Miscellaneous . | . . . . Route ------- -11/Scrapyard -10/Materials (discovered 3 exits: *Mat x3) -9/Materials (discovered 2 exits: [*Min x2]) -9/Mines (discovered 1 exit: [*Mat]) History --------- Turn | Location | Event 25 | -11/Scrapyard | Discovered new exit (range 16) 74 | -11/Scrapyard | Entered Materials 300 | -10/Materials | Build established: Mutant 433 | -10/Materials | Core integrity fell below 50% 472 | -10/Materials | Discovered new exit (range 15) 500 | -10/Materials | Discovered new exit (range 17) 565 | -10/Materials | Discovered new exit (range 16) 1360 | -10/Materials | Entered another Materials area 1360 | -9/Materials | Evolved 2 slots: Utility x1, Weapon x1 1360 | -9/Materials | Discovered new exit (range 8) 1581 | -9/Materials | Discovered new exit (range 13) 1979 | -9/Materials | Entered Mines 1980 | -9/Mines | Learned location of Storage (-9) 2023 | -9/Mines | Learned Materials non-interactive machine intel 2034 | -9/Mines | Received a Rocket Launcher from a helpful Derelict 2156 | -9/Mines | Assembled infested the area 2368 | -9/Mines | Build established: Gunner 2461 | -9/Mines | Discovered new exit (range 8) 2582 | -9/Mines | Core integrity fell below 50% 2598 | -9/Mines | Core integrity fell below 20% 2601 | -9/Mines | Destroyed by D-53 Grenadier with Mini Grenade Launcher Last Messages --------------- 02525_ System corrupted: Component data lost. 02541_ Extracted 121 matter. 02578_ Destroyed Flight Unit. 02578_ S-10 Pest destroyed. 02581_ System corrupted: Hvy. Assault Rifle jammed. 02584_ Assault Rifle destroyed. 02586_ S-10 Pest destroyed. 02587_ WO7XP 02592_ Rocket Launcher destroyed. 02595_ The unstable cave ceiling collapses. 02597_ Arm. Treads destroyed. 02598_ System corrupted: Shotgun targeting data glitched. 02600_ The unstable cave ceiling collapses. 02601_ Hvy. Assault Rifle destroyed. 02601_ D-53 Grenadier destroyed. 02601_ Switching to secondary target: D-53 Grenadier. [Achievement: First Step to Greatness] [Achievement: Just Browsing] Map ----- +----------------------------------------------------+ | ?????????????????????## #???? | | ????????????????????## #???? | | #??????############## #???? | | #??????# #???? | | #??????# ########### ##???? | | #???#### #?????????## #????? | | #???# #??????????## ##????? | | ????# #???????????# #?????? | | ???## ####??????????? #?????? | | ??## ]#?????????????? ##?????? | | ??# ##???????????? ##??????? | | ??# ##???????????# #???????? | | ?## ##??????????## #???????? | | ## #???????????# #???????? | | ## #??????????# #???????? | | ### ##?# #?????????# #???????? | | ??####???####?????????####???????? | | ?????????????????????????????????? | | ????????????????????????????##???? | | ????????????????????????####T#???? | | ??????????????????????### #???? | | ?????????????????????## # #???? | | ???????#???????####?## ##??? | | ??????## ?????## ### #??? | | ??????# #????# #??? | | ??????# ????# @ #??? | | ???????# ???# #??? | | ???????# #?## #??? | | ?#?????# ## ! #??? | | ? ##????# *%! ##??? | | ? ##???## =d # # ####???? | | ? #????# k ###?????? | | ? #????# ##???????? | | ? #???## ##????????? | | ? #??## ##?????????? | | # ##?# ##??????????? | | # ## ## #####????????? | | # #?## k ### ##???????? | | # #??## ### #???????? | | # ##??### ### ##??????? | | ##???# ##?????? | | #???# ## #?????? | | # #???# ### #?????? | | ##?????????# #?# ! #?????? | | #?????????# #?# !! #?????? | | # #?????????# #?# ! #?????? | | ###?????????# #?# #?????? | | # #??????????# #?########?????? | | =# ##??????????# #??????????????? | | ###???????????# #??????????????? | +----------------------------------------------------+ Best States ------------- Heat Dissipation 28 Energy Generation 12 Energy Capacity 265 Matter Stores 300 Matter Capacity 300 Sight Range 18 Terrain Scan Density 10 Evasion (%) 40 Targeting Accuracy 5 Recoil Reduction 2 Item Schematics ----------------- None Robot Schematics ------------------ None Fabricated ------------ Nothing Alien Tech Used ----------------- None Achievements -------------- Everything Is Under Control First Step to Greatness Just Browsing Loot Pinata Shopping List Challenges ------------ None Game ------ Seed RecoilDeliveryRegenerator Manual? 0 Play Time 00:27:55 Cumulative 118.8 hours Start 2019.10.26 @ 14:28:19 End 2019.10.26 @ 14:57:04 Sessions 1 Manual Loads 0 Difficulty Rogue Special Mode None Game No. 24 Rogue 24 Adventurer 0 Explorer 0 Win Type - Total 0 Types 0/0/0/0/0/0/0 Lore% 11 Gallery% 28 Achievement% 3 Wizard Run 0 Options --------- ASCII 0 Keyboard 1 Movement Numpad Keybinds 0 Fullscreen 2 Font 14/SmallcapsGlow Map View 72x54 Tactical HUD 1 Map Filters NONE Filters NONE Steam X RUN: 2b5f16f6-6bfb-4add-b49d-6cafa16a63a3